fUST/lending_fUST_20241121
["ID","MTS","AMOUNT","RATE_DAILY","PERIOD"]
[342845746,1732179042833,-500.0,0.00022739,2]
[342845748,1732179042842,-500.0,0.00022739,2]
[342845750,1732179042852,-2292.59,0.00022739,2]
[342845752,1732179042861,-649.93,0.00022739,2]
[342845753,1732179042870,-399.62867006,0.00022739,2]
[342845754,1732179042881,-1705.53,0.00022739,2]
[342845755,1732179042890,-500.0,0.00022739,2]
[342845756,1732179042899,-9446.81,0.00022739,2]
[342845757,1732179042909,-500.0,0.00022739,2]
[342845758,1732179042919,-500.0,0.00022739,2]
[342845759,1732179042929,-500.0,0.00022739,2]
[342845760,1732179042939,-4609.53,0.00022739,2]
[342845761,1732179042949,-500.0,0.00022739,2]
[342845762,1732179042959,-924.81,0.00022739,2]
[342845763,1732179042969,-1182.26,0.00022739,2]
[342845764,1732179042979,-2085.1,0.00022739,2]
[342845765,1732179042988,-500.0,0.00022739,2]
[342845766,1732179042998,-500.0,0.00022739,2]
[342845767,1732179043007,-500.0,0.00022739,2]
[342845768,1732179043017,-500.0,0.00022739,2]
[342845769,1732179043027,-500.0,0.00022739,2]
[342845770,1732179043036,-500.0,0.00022739,2]
[342845771,1732179043045,-500.0,0.00022739,2]
[342845772,1732179043055,-500.0,0.00022739,2]
[342845773,1732179043064,-500.0,0.00022739,2]
[342845774,1732179043074,-500.0,0.00022739,2]
[342845775,1732179043083,-500.0,0.00022739,2]
[342845776,1732179043092,-500.0,0.00022739,2]
[342845777,1732179043102,-1176.96,0.00022739,2]
[342845778,1732179043111,-500.0,0.00022739,2]
[342845779,1732179043121,-638.19,0.00022739,2]
[342845780,1732179043130,-366.62,0.00022739,2]
[342845781,1732179043140,-500.0,0.00022739,2]
[342845782,1732179043149,-500.0,0.00022739,2]
[342845783,1732179043159,-151.0,0.00022757,7]
[342845784,1732179043168,-151.0,0.00022757,7]
[342845785,1732179043178,-330.0,0.00022913,2]
[342845786,1732179043187,-166.90921,0.00023013,7]
[342845787,1732179043197,-166.90921,0.00023013,7]
[342845788,1732179043207,-443.312623,0.00023013,7]
[342845789,1732179043218,-443.312623,0.00023013,7]
[342845790,1732179043227,-151.0,0.00023013,7]
[342845791,1732179043237,-151.0,0.00023013,7]
[342845792,1732179043246,-500.0,0.00023013,2]
[342845793,1732179043255,-500.0,0.00023013,2]
[342845794,1732179043264,-500.0,0.00023013,2]
[342845795,1732179043273,-556.24,0.00023013,2]
[342845796,1732179043282,-500.0,0.00023013,2]
[342845797,1732179043291,-720.57,0.00023013,2]
[342845798,1732179043301,-556.75,0.00023013,2]
[342845799,1732179043310,-500.0,0.00023013,2]
[342845800,1732179043319,-500.0,0.00023013,2]
[342845801,1732179043328,-500.0,0.00023013,2]
[342845802,1732179043337,-500.0,0.00023013,2]
[342845803,1732179043347,-1236.27,0.00023013,2]
[342845804,1732179043356,-500.0,0.00023013,2]
[342845805,1732179043365,-539.19,0.00023013,2]
[342845806,1732179043375,-500.0,0.00023013,2]
[342845807,1732179043384,-500.0,0.00023013,2]
[342845808,1732179043393,-500.0,0.00023013,2]
[342845809,1732179043402,-500.0,0.00023013,2]
[342845810,1732179043411,-500.0,0.00023013,2]
[342845811,1732179043421,-642.54,0.00023013,2]
[342845812,1732179043430,-519.5,0.00023013,2]
[342845813,1732179043439,-500.0,0.00023013,2]
[342845814,1732179043449,-500.0,0.00023013,2]
[342845815,1732179043459,-500.0,0.00023013,2]
[342845816,1732179043469,-500.0,0.00023013,2]
[342845817,1732179043478,-1808.4,0.00023013,2]
[342845818,1732179043487,-500.0,0.00023013,2]
[342845819,1732179043496,-609.19,0.00023013,2]
[342845820,1732179043504,-500.0,0.00023013,2]
[342845821,1732179043513,-500.0,0.00023013,2]
[342845822,1732179043523,-2292.59,0.00023013,2]
[342845823,1732179043533,-649.93,0.00023013,2]
[342845824,1732179043620,-1705.53,0.00023013,2]
[342845825,1732179043631,-500.0,0.00023013,2]
[342845826,1732179043641,-9446.81,0.00023013,2]
[342845827,1732179043651,-500.0,0.00023013,2]
[342845828,1732179043661,-500.0,0.00023013,2]
[342845829,1732179043674,-500.0,0.00023013,2]
[342845830,1732179043683,-4609.53,0.00023013,2]
[342845831,1732179043693,-500.0,0.00023013,2]
[342845832,1732179043703,-924.81,0.00023013,2]
[342845833,1732179043713,-1182.26,0.00023013,2]
[342845834,1732179043723,-2085.1,0.00023013,2]
[342845835,1732179043732,-500.0,0.00023013,2]
[342845836,1732179043744,-500.0,0.00023013,2]
[342845837,1732179043753,-500.0,0.00023013,2]
[342845838,1732179043763,-500.0,0.00023013,2]
[342845839,1732179043772,-500.0,0.00023013,2]
[342845840,1732179043781,-500.0,0.00023013,2]
[342845841,1732179043790,-500.0,0.00023013,2]
[342845842,1732179043799,-500.0,0.00023013,2]
[342845843,1732179043808,-500.0,0.00023013,2]
[342845844,1732179043818,-500.0,0.00023013,2]
[342845845,1732179043827,-500.0,0.00023013,2]
[342845846,1732179043837,-500.0,0.00023013,2]
[342845847,1732179043846,-1176.96,0.00023013,2]
[342845848,1732179043855,-500.0,0.00023013,2]
[342845849,1732179043864,-150.83580587,0.00023013,2]
[342845850,1732179043874,-500.0,0.00023013,2]
[342845851,1732179043883,-500.0,0.00023013,2]
[342845852,1732179043892,-504.63243929,0.00023155,2]
[342845853,1732179043901,-150.34726646,0.00023287,2]
[342845854,1732179043911,-166.90921,0.00023287,7]
[342845855,1732179043920,-166.90921,0.00023287,7]
[342845856,1732179043929,-443.312623,0.00023287,7]
[342845857,1732179043938,-443.312623,0.00023287,7]
[342845858,1732179043948,-151.0,0.00023287,7]
[342845859,1732179043961,-500.0,0.00023287,2]
[342845860,1732179043971,-500.0,0.00023287,2]
[342845861,1732179043980,-500.0,0.00023287,2]
[342845862,1732179043989,-500.0,0.00023287,2]
[342845863,1732179043999,-556.24,0.00023287,2]
[342845864,1732179044008,-500.0,0.00023287,2]
[342845865,1732179044020,-720.57,0.00023287,2]
[342845866,1732179044030,-556.75,0.00023287,2]
[342845867,1732179044039,-500.0,0.00023287,2]
[342845868,1732179044049,-500.0,0.00023287,2]
[342845869,1732179044058,-500.0,0.00023287,2]
[342845870,1732179044068,-295.81183716,0.00023287,2]
[342845871,1732179044077,-1236.27,0.00023287,2]
[342845872,1732179044087,-500.0,0.00023287,2]
[342845873,1732179044096,-539.19,0.00023287,2]
[342845874,1732179044107,-500.0,0.00023287,2]
[342845875,1732179044118,-500.0,0.00023287,2]
[342845876,1732179044128,-500.0,0.00023287,2]
[342845877,1732179044138,-339.66359615,0.00023287,2]
[342845878,1732179044147,-383.37931157,0.00023287,2]
[342845879,1732179044157,-642.54,0.00023287,2]
[342845880,1732179044168,-519.5,0.00023287,2]
[342845881,1732179044178,-500.0,0.00023287,2]
[342845882,1732179044189,-500.0,0.00023287,2]
[342845883,1732179044198,-500.0,0.00023287,2]
[342845884,1732179044208,-500.0,0.00023287,2]
[342845885,1732179044220,-1808.4,0.00023287,2]
[342845886,1732179044230,-500.0,0.00023287,2]
[342845887,1732179044239,-609.19,0.00023287,2]
[342845888,1732179044248,-550.40101098,0.00023287,2]
[342845889,1732179044258,-407.93277011,0.00023287,2]
[342845890,1732179044267,-2292.59,0.00023287,2]
[342845891,1732179044276,-649.93,0.00023287,2]
[342845892,1732179044285,-1705.53,0.00023287,2]
[342845893,1732179044295,-410.81494388,0.00023287,2]
[342845894,1732179044305,-9446.81,0.00023287,2]
[342845895,1732179044315,-500.0,0.00023287,2]
[342845896,1732179044324,-500.0,0.00023287,2]
[342845897,1732179044333,-500.0,0.00023287,2]
[342845898,1732179044343,-4609.53,0.00023287,2]
[342845899,1732179044353,-500.0,0.00023287,2]
[342845900,1732179044362,-924.81,0.00023287,2]
[342845901,1732179044371,-1182.26,0.00023287,2]
[342845902,1732179044380,-2085.1,0.00023287,2]
[342845903,1732179044389,-500.0,0.00023287,2]
[342845904,1732179044398,-409.93410699,0.00023287,2]
[342845905,1732179044407,-500.0,0.00023287,2]
[342845906,1732179044416,-500.0,0.00023287,2]
[342845907,1732179044426,-500.0,0.00023287,2]
[342845908,1732179044435,-500.0,0.00023287,2]
[342845909,1732179044444,-500.0,0.00023287,2]
[342845910,1732179044453,-500.0,0.00023287,2]
[342845911,1732179044466,-500.0,0.00023287,2]
[342845912,1732179044475,-500.0,0.00023287,2]
[342845913,1732179044484,-500.0,0.00023287,2]
[342845914,1732179044493,-500.0,0.00023287,2]
[342845915,1732179044502,-1176.96,0.00023287,2]
[342845916,1732179044511,-500.0,0.00023287,2]
[342845917,1732179044520,-500.0,0.00023287,2]
[342845918,1732179044530,-500.0,0.00023287,2]
[342845919,1732179044539,-263.65902951,0.00023288,2]
[342845920,1732179044549,-3014.03580475,0.00023311,2]
[342845921,1732179044558,-2000.00000099,0.000234,2]
[342845922,1732179044567,-154.046,0.00023432,2]
[342845923,1732179044576,-1212.381,0.00023432,2]
[342845924,1732179044585,-652.25,0.00023432,2]
[342845925,1732179044595,-2390.0,0.00023432,2]
[342845926,1732179044604,-453.402,0.00023432,2]
[342845927,1732179044614,-158.24950921,0.00023561,2]
[342845928,1732179044623,-166.90921,0.00023561,7]
[342845929,1732179044632,-166.90921,0.00023561,7]
[342845930,1732179044641,-443.312623,0.00023561,7]
[342845931,1732179044651,-443.312623,0.00023561,7]
[342845932,1732179044661,-151.0,0.00023561,7]
[342845933,1732179044672,-151.0,0.00023561,7]
[342845934,1732179044681,-500.0,0.00023561,2]
[342845935,1732179044690,-151.0,0.00023561,7]
[342845936,1732179044699,-151.0,0.00023561,7]
[342845937,1732179044709,-189.331968,0.00023561,7]
[342845938,1732179044721,-189.331968,0.00023561,7]
[342845939,1732179044730,-151.0,0.00023561,7]
[342845940,1732179044740,-151.0,0.00023561,7]
[342845941,1732179044750,-500.0,0.00023561,2]
[342845942,1732179044759,-151.0,0.00023561,7]
[342845943,1732179044768,-151.0,0.00023561,7]
[342845944,1732179044777,-334.65520068,0.00023561,2]
[342845945,1732179044786,-151.0,0.00023561,7]
[342845946,1732179044795,-151.0,0.00023561,7]
[342845947,1732179044804,-556.24,0.00023561,2]
[342845948,1732179044813,-2137.812299,0.00023561,7]
[342845949,1732179044822,-151.0,0.00023561,7]
[342845950,1732179044832,-500.0,0.00023561,2]
[342845951,1732179044842,-151.0,0.00023561,7]
[342845952,1732179044851,-720.57,0.00023561,2]
[342845953,1732179044860,-280.46561,0.00023561,7]
[342845954,1732179044869,-556.75,0.00023561,2]
[342845955,1732179044879,-500.0,0.00023561,2]
[342845956,1732179044888,-500.0,0.00023561,2]
[342845957,1732179044897,-151.0,0.00023561,7]
[342845958,1732179044907,-151.0,0.00023561,7]
[342845959,1732179044917,-500.0,0.00023561,2]
[342845960,1732179044926,-151.0,0.00023561,7]
[342845961,1732179044935,-153.799413,0.00023561,7]
[342845962,1732179044945,-153.799413,0.00023561,7]
[342845963,1732179044954,-454.034636,0.00023561,7]
[342845964,1732179044965,-454.034636,0.00023561,7]
[342845965,1732179044974,-151.0,0.00023561,7]
[342845966,1732179044983,-171.985668,0.00023561,7]
[342845967,1732179044993,-1236.27,0.00023561,2]
[342845968,1732179045002,-192.3987,0.00023561,7]
[342845969,1732179045011,-500.0,0.00023561,2]
[342845970,1732179045021,-192.3987,0.00023561,7]
[342845971,1732179045030,-539.19,0.00023561,2]
[342845972,1732179045039,-500.0,0.00023561,2]
[342845973,1732179045048,-471.883528,0.00023561,7]
[342845974,1732179045057,-471.883528,0.00023561,7]
[342845975,1732179045066,-1283.908578,0.00023561,7]
[342845976,1732179045075,-500.0,0.00023561,2]
[342845977,1732179045085,-1283.908578,0.00023561,7]
[342845978,1732179045095,-1423.435059,0.00023561,7]
[342845979,1732179045104,-500.0,0.00023561,2]
[342845980,1732179045113,-1943.946544,0.00023561,7]
[342845981,1732179045122,-1423.435059,0.00023561,7]
[342845982,1732179045131,-1943.946544,0.00023561,7]
[342845983,1732179045140,-642.54,0.00023561,2]
[342845984,1732179045150,-483.243882,0.00023561,7]
[342845985,1732179045159,-519.5,0.00023561,2]
[342845986,1732179045168,-483.243882,0.00023561,7]
[342845987,1732179045177,-500.0,0.00023561,2]
[342845988,1732179045189,-638.01,0.00023561,2]
[342845989,1732179045198,-151.0,0.00023561,7]
[342845990,1732179045207,-151.0,0.00023561,7]
[342845991,1732179045217,-500.0,0.00023561,2]
[342845992,1732179045226,-500.0,0.00023561,2]
[342845993,1732179045235,-323.639727,0.00023561,7]
[342845994,1732179045244,-1808.4,0.00023561,2]
[342845995,1732179045254,-323.639727,0.00023561,7]
[342845996,1732179045263,-500.0,0.00023561,2]
[342845997,1732179045272,-609.19,0.00023561,2]
[342845998,1732179045282,-151.0,0.00023561,7]
[342845999,1732179045291,-2292.59,0.00023561,2]
[342846000,1732179045300,-649.93,0.00023561,2]
[342846001,1732179045311,-151.0,0.00023561,7]
[342846002,1732179045321,-1705.53,0.00023561,2]
[342846004,1732179045330,-642.696877,0.00023561,7]
[342846006,1732179045340,-151.0,0.00023561,7]
[342846007,1732179045349,-487.377585,0.00023561,7]
[342846008,1732179045358,-151.0,0.00023561,7]
[342846009,1732179045367,-151.0,0.00023561,7]
[342846010,1732179045377,-487.377585,0.00023561,7]
[342846012,1732179045387,-642.696877,0.00023561,7]
[342846013,1732179045397,-9446.81,0.00023561,2]
[342846014,1732179045405,-480.607155,0.00023561,7]
[342846015,1732179045417,-151.0,0.00023561,7]
[342846016,1732179045427,-480.607155,0.00023561,7]
[342846017,1732179045437,-376.86749383,0.00023561,2]
[342846020,1732179045518,-500.0,0.00023561,2]
[342846021,1732179045528,-500.0,0.00023561,2]
[342846022,1732179045537,-4609.53,0.00023561,2]
[342846023,1732179045546,-500.0,0.00023561,2]
[342846024,1732179045556,-924.81,0.00023561,2]
[342846026,1732179045565,-151.0,0.00023561,7]
[342846028,1732179045575,-1182.26,0.00023561,2]
[342846030,1732179045584,-2085.1,0.00023561,2]
[342846032,1732179045593,-500.0,0.00023561,2]
[342846033,1732179045602,-500.0,0.00023561,2]
[342846035,1732179045611,-500.0,0.00023561,2]
[342846037,1732179045620,-500.0,0.00023561,2]
[342846038,1732179045630,-500.0,0.00023561,2]
[342846040,1732179045639,-253.334439,0.00023561,7]
[342846041,1732179045648,-253.334439,0.00023561,7]
[342846043,1732179045659,-500.0,0.00023561,2]
[342846045,1732179045670,-500.0,0.00023561,2]
[342846046,1732179045679,-500.0,0.00023561,2]
[342846048,1732179045689,-151.0,0.00023561,7]
[342846050,1732179045699,-562.79534955,0.00023561,2]
[342846051,1732179045710,-500.0,0.00023561,2]
[342846052,1732179045720,-500.0,0.00023561,2]
[342846053,1732179045730,-151.0,0.00023561,7]
[342846054,1732179045739,-1176.96,0.00023561,2]
[342846055,1732179045750,-500.0,0.00023561,2]
[342846056,1732179045760,-252.95745554,0.00023835,2]
[342846057,1732179045769,-166.90921,0.00023835,7]
[342846058,1732179045778,-166.90921,0.00023835,7]
[342846059,1732179045788,-443.312623,0.00023835,7]
[342846060,1732179045797,-443.312623,0.00023835,7]
[342846061,1732179045806,-151.0,0.00023835,7]
[342846062,1732179045815,-151.0,0.00023835,7]
[342846063,1732179045824,-500.0,0.00023835,2]
[342846065,1732179045835,-500.0,0.00023835,2]
[342846066,1732179045844,-556.24,0.00023835,2]
[342846067,1732179045854,-500.0,0.00023835,2]
[342846068,1732179045862,-720.57,0.00023835,2]
[342846069,1732179045871,-556.75,0.00023835,2]
[342846070,1732179045881,-500.0,0.00023835,2]
[342846071,1732179045890,-500.0,0.00023835,2]
[342846072,1732179045900,-500.0,0.00023835,2]
[342846073,1732179045909,-1236.27,0.00023835,2]
[342846074,1732179045919,-312.35853602,0.00023835,2]
[342846075,1732179045927,-539.19,0.00023835,2]
[342846076,1732179045936,-500.0,0.00023835,2]
[342846077,1732179045946,-500.0,0.00023835,2]
[342846078,1732179045955,-500.0,0.00023835,2]
[342846079,1732179045965,-642.54,0.00023835,2]
[342846080,1732179045974,-519.5,0.00023835,2]
[342846081,1732179045983,-500.0,0.00023835,2]
[342846082,1732179045992,-152.98356259,0.00023835,2]
[342846083,1732179046001,-500.0,0.00023835,2]
[342846084,1732179046010,-1808.4,0.00023835,2]
[342846086,1732179046019,-500.0,0.00023835,2]
[342846087,1732179046028,-609.19,0.00023835,2]
[342846089,1732179046038,-2292.59,0.00023835,2]
[342846090,1732179046047,-649.93,0.00023835,2]
[342846091,1732179046056,-9446.81,0.00023835,2]
[342846093,1732179046065,-500.0,0.00023835,2]
[342846094,1732179046074,-500.0,0.00023835,2]
[342846095,1732179046083,-4609.53,0.00023835,2]
[342846096,1732179046092,-500.0,0.00023835,2]
[342846097,1732179046102,-924.81,0.00023835,2]
[342846098,1732179046111,-1182.26,0.00023835,2]
[342846100,1732179046120,-2085.1,0.00023835,2]
[342846101,1732179046129,-500.0,0.00023835,2]
[342846102,1732179046140,-500.0,0.00023835,2]
[342846103,1732179046149,-500.0,0.00023835,2]
[342846104,1732179046159,-500.0,0.00023835,2]
[342846105,1732179046168,-500.0,0.00023835,2]
[342846106,1732179046179,-500.0,0.00023835,2]
[342846107,1732179046189,-500.0,0.00023835,2]
[342846108,1732179046198,-500.0,0.00023835,2]
[342846109,1732179046207,-500.0,0.00023835,2]
[342846110,1732179046219,-500.0,0.00023835,2]
[342846111,1732179046228,-1176.96,0.00023835,2]
[342846112,1732179046238,-500.0,0.00023835,2]
[342846113,1732179046247,-2845.3434341,0.00023852,2]
[342846114,1732179046256,-892.50685104,0.00024,2]
[342846115,1732179046264,-200.36,0.00024109,2]
[342846116,1732179046274,-151.389558,0.00024109,7]
[342846117,1732179046284,-500.0,0.00024109,2]
[342846118,1732179046293,-151.0,0.00024109,7]
[342846119,1732179046302,-151.0,0.00024109,7]
[342846120,1732179046311,-189.331968,0.00024109,7]
[342846121,1732179046320,-189.331968,0.00024109,7]
[342846122,1732179046330,-151.0,0.00024109,7]
[342846123,1732179046339,-151.0,0.00024109,7]
[342846124,1732179046348,-500.0,0.00024109,2]
[342846125,1732179046358,-229.707671,0.00024109,7]
[342846126,1732179046367,-151.0,0.00024109,7]
[342846127,1732179046377,-151.0,0.00024109,7]
[342846128,1732179046388,-152.501059,0.00024109,7]
[342846129,1732179046398,-556.24,0.00024109,2]
[342846130,1732179046411,-2137.812299,0.00024109,7]
[342846131,1732179046420,-500.0,0.00024109,2]
[342846132,1732179046429,-151.0,0.00024109,7]
[342846133,1732179046439,-151.0,0.00024109,7]
[342846134,1732179046448,-720.57,0.00024109,2]
[342846135,1732179046457,-556.75,0.00024109,2]
[342846136,1732179046467,-500.0,0.00024109,2]
[342846137,1732179046477,-500.0,0.00024109,2]
[342846138,1732179046486,-500.0,0.00024109,2]
[342846139,1732179046495,-153.31497,0.00024109,7]
[342846140,1732179046506,-1236.27,0.00024109,2]
[342846141,1732179046516,-192.3987,0.00024109,7]
[342846142,1732179046524,-192.3987,0.00024109,7]
[342846143,1732179046534,-539.19,0.00024109,2]
[342846144,1732179046543,-500.0,0.00024109,2]
[342846145,1732179046552,-471.883528,0.00024109,7]
[342846146,1732179046562,-471.883528,0.00024109,7]
[342846147,1732179046571,-500.0,0.00024109,2]
[342846148,1732179046580,-500.0,0.00024109,2]
[342846149,1732179046589,-642.54,0.00024109,2]
[342846150,1732179046598,-519.5,0.00024109,2]
[342846151,1732179046607,-500.0,0.00024109,2]
[342846152,1732179046616,-500.0,0.00024109,2]
[342846153,1732179046625,-1808.4,0.00024109,2]
[342846154,1732179046634,-500.0,0.00024109,2]
[342846155,1732179046643,-609.19,0.00024109,2]
[342846156,1732179046652,-2292.59,0.00024109,2]
[342846157,1732179046665,-649.93,0.00024109,2]
[342846158,1732179046674,-9446.81,0.00024109,2]
[342846159,1732179046683,-500.0,0.00024109,2]
[342846160,1732179046692,-500.0,0.00024109,2]
[342846161,1732179046702,-4609.53,0.00024109,2]
[342846162,1732179046711,-500.0,0.00024109,2]
[342846163,1732179046721,-924.81,0.00024109,2]
[342846164,1732179046730,-1182.26,0.00024109,2]
[342846165,1732179046743,-2085.1,0.00024109,2]
[342846166,1732179046753,-500.0,0.00024109,2]
[342846167,1732179046762,-500.0,0.00024109,2]
[342846168,1732179046771,-500.0,0.00024109,2]
[342846169,1732179046780,-500.0,0.00024109,2]
[342846170,1732179046790,-500.0,0.00024109,2]
[342846171,1732179046799,-500.0,0.00024109,2]
[342846172,1732179046809,-500.0,0.00024109,2]
[342846173,1732179046819,-500.0,0.00024109,2]
[342846174,1732179046828,-345.48,0.00024109,2]
[342846175,1732179046837,-500.0,0.00024109,2]
[342846176,1732179046847,-1176.96,0.00024109,2]
[342846177,1732179046856,-500.0,0.00024109,2]
[342846178,1732179046864,-166.90921,0.00024301,7]
[342846179,1732179046874,-166.909203,0.00024301,7]
[342846180,1732179046883,-443.312623,0.00024301,7]
[342846181,1732179046892,-443.312618,0.00024301,7]
[342846182,1732179046901,-3014.03580475,0.00024358,2]
[342846183,1732179046910,-500.0,0.00024383,2]
[342846184,1732179046919,-500.0,0.00024383,2]
[342846185,1732179046931,-556.24,0.00024383,2]
[342846186,1732179046940,-460.16,0.00024383,2]
[342846187,1732179046949,-720.57,0.00024383,2]
[342846188,1732179046960,-556.75,0.00024383,2]
[342846189,1732179046970,-500.0,0.00024383,2]
[342846190,1732179046979,-500.0,0.00024383,2]
[342846191,1732179046988,-151.0,0.00024383,7]
[342846192,1732179046997,-151.0,0.00024383,7]
[342846193,1732179047006,-403.71391444,0.00024383,2]
[342846194,1732179047016,-153.799413,0.00024383,7]
[342846195,1732179047025,-153.799413,0.00024383,7]
[342846196,1732179047034,-454.034636,0.00024383,7]
[342846197,1732179047043,-454.034636,0.00024383,7]
[342846198,1732179047053,-151.0,0.00024383,7]
[342846199,1732179047061,-1236.27,0.00024383,2]
[342846200,1732179047071,-539.19,0.00024383,2]
[342846201,1732179047080,-500.0,0.00024383,2]
[342846202,1732179047089,-1283.908578,0.00024383,7]
[342846203,1732179047098,-500.0,0.00024383,2]
[342846204,1732179047107,-1283.908578,0.00024383,7]
[342846205,1732179047117,-1423.435059,0.00024383,7]
[342846206,1732179047126,-500.0,0.00024383,2]
[342846207,1732179047135,-1943.946544,0.00024383,7]
[342846208,1732179047145,-1943.946544,0.00024383,7]
[342846209,1732179047154,-1423.435059,0.00024383,7]
[342846210,1732179047163,-642.54,0.00024383,2]
[342846211,1732179047172,-483.243882,0.00024383,7]
[342846212,1732179047252,-519.5,0.00024383,2]
[342846213,1732179047263,-483.243882,0.00024383,7]
[342846214,1732179047273,-208.50380274,0.00024383,2]
[342846215,1732179047283,-151.0,0.00024383,7]
[342846216,1732179047294,-151.0,0.00024383,7]
[342846217,1732179047303,-500.0,0.00024383,2]
[342846218,1732179047313,-323.639727,0.00024383,7]
[342846219,1732179047322,-1808.4,0.00024383,2]
[342846220,1732179047331,-323.639727,0.00024383,7]
[342846221,1732179047341,-500.0,0.00024383,2]
[342846222,1732179047350,-609.19,0.00024383,2]
[342846223,1732179047360,-151.0,0.00024383,7]
[342846224,1732179047370,-2292.59,0.00024383,2]
[342846225,1732179047379,-649.93,0.00024383,2]
[342846226,1732179047389,-151.0,0.00024383,7]
[342846227,1732179047398,-642.696877,0.00024383,7]
[342846228,1732179047407,-151.0,0.00024383,7]
[342846229,1732179047416,-487.377585,0.00024383,7]
[342846230,1732179047426,-151.0,0.00024383,7]
[342846231,1732179047435,-151.0,0.00024383,7]
[342846232,1732179047445,-487.377585,0.00024383,7]
[342846233,1732179047455,-480.607155,0.00024383,7]
[342846234,1732179047464,-9446.81,0.00024383,2]
[342846235,1732179047477,-642.696877,0.00024383,7]
[342846236,1732179047486,-151.0,0.00024383,7]
[342846237,1732179047495,-480.607155,0.00024383,7]
[342846238,1732179047505,-465.50258766,0.00024383,2]
[342846239,1732179047515,-500.0,0.00024383,2]
[342846240,1732179047524,-4609.53,0.00024383,2]
[342846241,1732179047533,-500.0,0.00024383,2]
[342846242,1732179047542,-924.81,0.00024383,2]
[342846243,1732179047552,-151.0,0.00024383,7]
[342846244,1732179047562,-1182.26,0.00024383,2]
[342846245,1732179047571,-2085.1,0.00024383,2]
[342846246,1732179047581,-500.0,0.00024383,2]
[342846247,1732179047590,-432.38,0.00024383,2]
[342846248,1732179047600,-631.3615145,0.00024383,2]
[342846249,1732179047609,-500.0,0.00024383,2]
[342846250,1732179047619,-500.0,0.00024383,2]
[342846251,1732179047628,-253.334439,0.00024383,7]
[342846252,1732179047638,-253.334439,0.00024383,7]
[342846253,1732179047647,-304.89236063,0.00024383,2]
[342846254,1732179047657,-500.0,0.00024383,2]
[342846255,1732179047670,-500.0,0.00024383,2]
[342846256,1732179047679,-151.0,0.00024383,7]
[342846257,1732179047688,-500.0,0.00024383,2]
[342846258,1732179047697,-154.96372,0.00024383,7]
[342846259,1732179047707,-1176.96,0.00024383,2]
[342846260,1732179047717,-500.0,0.00024383,2]
[342846261,1732179047727,-339.40065395,0.000244,2]
[342846262,1732179047736,-151.0,0.00024507,7]
[342846263,1732179047747,-151.0,0.00024507,7]
[342846264,1732179047757,-151.0,0.00024507,7]
[342846265,1732179047767,-151.0,0.00024507,7]
[342846266,1732179047777,-151.0,0.00024507,7]
[342846267,1732179047786,-151.0,0.00024507,7]
[342846268,1732179047796,-151.0,0.00024657,7]
[342846269,1732179047806,-500.0,0.00024657,4]